bitfinex/quotes_BTCUSD_20250802
["timestamp","ask_amount","ask_price","bid_price","bid_amount"]
[1754148832402,1.49459996,113260.0,113250.0,0.00794]
[1754148832616,1.43485202,113260.0,113250.0,0.01094]
[1754148833054,1.43485202,113260.0,113250.0,0.00794]
[1754148833488,1.43485202,113260.0,113250.0,0.00894]
[1754148833711,1.42002942,113260.0,113250.0,0.00394]
[1754148833924,1.43385411,113260.0,113250.0,0.00394]
[1754148834574,1.43485411,113260.0,113250.0,0.00794]
[1754148834800,1.43485411,113260.0,113250.0,0.00694]
[1754148834801,1.519054,113260.0,113250.0,0.00694]
[1754148835027,1.518054,113260.0,113250.0,0.00294]
[1754148835274,1.54079837,113260.0,113250.0,0.00294]
[1754148835489,1.54079837,113260.0,113250.0,0.00494]
[1754148836136,1.54079525,113260.0,113250.0,0.00494]
[1754148837045,2.16378009,113260.0,113250.0,0.00494]
[1754148837265,2.41437753,113260.0,113250.0,0.00294]
[1754148837696,2.41437753,113260.0,113250.0,0.00394]
[1754148837697,1.98719525,113260.0,113250.0,0.00394]
[1754148838158,1.98819525,113260.0,113250.0,0.00394]
[1754148839029,2.01200331,113260.0,113250.0,0.00394]
[1754148840416,2.04018866,113260.0,113250.0,0.00394]
[1754148841944,2.04018866,113260.0,113250.0,0.43112228]
[1754148841945,1.08621238,113260.0,113250.0,0.43112228]
[1754148842172,1.08621238,113260.0,113250.0,0.47274228]
[1754148842395,1.08629238,113260.0,113250.0,0.47274228]
[1754148842632,1.08629238,113260.0,113250.0,0.04556]
[1754148842893,1.08629238,113260.0,113250.0,0.43112228]
[1754148842894,1.08794238,113260.0,113250.0,0.43112228]
[1754148843142,1.09021069,113260.0,113250.0,0.00394]
[1754148843362,1.06545069,113260.0,113250.0,0.46752228]
[1754148843600,1.06549069,113260.0,113250.0,0.04556]
[1754148843808,1.051666,113260.0,113250.0,0.04556]
[1754148844025,1.391666,113260.0,113250.0,0.04556]
[1754148844763,1.391626,113260.0,113250.0,0.04243]
[1754148844996,1.50078589,113260.0,113250.0,0.00394]
[1754148845662,1.394106,113260.0,113250.0,0.00603]
[1754148845896,1.248416,113260.0,113250.0,0.70215174]
[1754148846124,1.392576,113260.0,113250.0,0.70215174]
[1754148846349,0.001,113260.0,113250.0,0.71960076]
[1754148846588,0.001,113260.0,113250.0,0.06300902]
[1754148846827,0.35482383,113260.0,113250.0,0.06933392]
[1754148847284,0.01482383,113260.0,113250.0,0.72592566]
[1754148847732,0.35482383,113260.0,113250.0,0.06933392]
[1754148847944,0.35482383,113260.0,113250.0,0.72592566]
[1754148848171,0.35482383,113260.0,113250.0,0.06933392]
[1754148848388,0.35482383,113260.0,113250.0,0.72592566]
[1754148848821,0.35482383,113260.0,113250.0,0.39130489]
[1754148849045,0.35482383,113260.0,113250.0,0.49031236]
[1754148849270,0.35482383,113260.0,113250.0,0.06300902]
[1754148849735,1.26388983,113260.0,113250.0,0.04034]
[1754148849949,1.26388983,113260.0,113250.0,0.00394]
[1754148850170,1.37304972,113260.0,113250.0,0.00394]
[1754148850900,1.26388983,113260.0,113250.0,0.00394]
[1754148851596,1.26223983,113260.0,113250.0,0.04556]
[1754148851818,1.40771983,113260.0,113250.0,0.47286334]
[1754148852060,1.40936983,113260.0,113250.0,0.04034]
[1754148853147,0.50195383,113260.0,113250.0,0.04034]
[1754148853378,1.40771983,113260.0,113250.0,0.47286334]
[1754148853597,1.40803983,113260.0,113250.0,0.04556]
[1754148853817,1.40803983,113260.0,113250.0,0.49031236]
[1754148853818,0.4868,113260.0,113250.0,0.49031236]
[1754148854460,0.4868,113260.0,113250.0,0.06300902]
[1754148854678,0.4868,113260.0,113250.0,0.49031236]
[1754148855106,0.4868,113260.0,113250.0,0.06300902]
[1754148855320,1.394216,113260.0,113250.0,0.47286334]
[1754148856655,1.394216,113260.0,113250.0,0.48963005]
[1754148856837,1.394216,113260.0,113250.0,0.47286334]
[1754148857089,0.4868,113260.0,113250.0,0.47286334]
[1754148857528,0.48664,113260.0,113250.0,0.47286334]
[1754148857739,0.341,113260.0,113250.0,0.49031236]
[1754148857954,0.35482432,113260.0,113250.0,0.49031236]
[1754148858161,0.50038432,113260.0,113250.0,0.5539276]
[1754148859037,0.01482432,113260.0,113250.0,0.5539276]
[1754148859242,0.35482432,113260.0,113250.0,0.5539276]
[1754148860096,0.14556,113270.0,113260.0,0.01744902]
[1754148860316,1.052976,113270.0,113260.0,0.48857967]
[1754148860522,1.06679937,113270.0,113260.0,0.54198585]
[1754148860733,0.15938337,113270.0,113260.0,0.54198585]
[1754148861176,1.06679937,113270.0,113260.0,0.11468251]
[1754148861382,1.06679937,113270.0,113260.0,0.48637236]
[1754148862666,1.06979937,113270.0,113260.0,0.48637236]
[1754148863335,0.16238337,113270.0,113260.0,0.48637236]
[1754148863831,0.14856,113270.0,113260.0,0.48637236]
[1754148864283,0.48856,113270.0,113260.0,0.48637236]
[1754148864511,0.48856,113270.0,113260.0,0.5353036]
[1754148865201,0.48844,113270.0,113260.0,0.5353036]
[1754148865659,0.003,113270.0,113260.0,0.5353036]
[1754148866173,0.001,113270.0,113260.0,0.5353036]
[1754148866401,0.65591288,113280.0,113260.0,0.5363036]
[1754148866624,0.85035288,113280.0,113270.0,0.48636947]
[1754148866847,0.85035288,113280.0,113270.0,0.55430233]
[1754148866848,0.99591288,113280.0,113270.0,0.55430233]
[1754148867067,1.00973494,113280.0,113270.0,0.55643233]
[1754148867506,0.86417494,113280.0,113270.0,0.55643233]
[1754148867753,0.66977494,113280.0,113270.0,0.55643233]
[1754148868437,0.52417494,113280.0,113270.0,0.55643233]
[1754148868657,0.51382206,113280.0,113270.0,0.64063222]
[1754148868876,0.01382206,113280.0,113270.0,0.64063222]
[1754148870181,0.01482206,113280.0,113270.0,0.64063222]
[1754148870401,0.01382206,113280.0,113270.0,0.66563222]
[1754148870837,0.01382206,113280.0,113270.0,0.66963222]
[1754148871294,0.01382206,113280.0,113270.0,0.64463222]
[1754148871526,0.01382206,113280.0,113270.0,0.66963222]
[1754148872395,0.01382206,113280.0,113270.0,0.64763222]
[1754148872847,0.01382206,113280.0,113270.0,0.81791222]
[1754148873517,0.01382206,113280.0,113270.0,0.81803222]
[1754148873742,0.5,113290.0,113280.0,0.01744902]
[1754148873956,0.5,113290.0,113280.0,0.61361129]
[1754148874180,0.5,113290.0,113280.0,0.65302129]
[1754148875275,0.5,113290.0,113280.0,0.65602129]
[1754148876650,0.50165,113290.0,113280.0,0.02044902]
[1754148876873,1.02818989,113290.0,113280.0,0.003]
[1754148877088,0.52818989,113290.0,113280.0,0.003]
[1754148877313,0.52818989,113290.0,113280.0,0.00304]
[1754148877543,0.52715989,113290.0,113280.0,0.00604]
[1754148877761,0.52715989,113290.0,113280.0,0.02269594]
[1754148877978,0.52715989,113290.0,113280.0,0.01969594]
[1754148878190,0.52715989,113290.0,113280.0,0.02048902]
[1754148878844,0.52818989,113290.0,113280.0,0.02048902]
[1754148879509,0.52818989,113290.0,113280.0,0.00304]
[1754148880160,0.52715989,113290.0,113280.0,0.00304]
[1754148883072,1.43457589,113290.0,113280.0,0.00304]
[1754148883750,1.421786,113290.0,113280.0,0.00304]
[1754148885313,1.43829776,113290.0,113280.0,0.00304]
[1754148885526,1.44448984,113290.0,113280.0,0.00304]
[1754148887144,1.41527984,113290.0,113280.0,0.47188334]
[1754148887364,1.392576,113290.0,113280.0,0.47188334]
[1754148887590,1.392576,113290.0,113280.0,0.04258]
[1754148888021,1.247416,113290.0,113280.0,0.04258]
[1754148888238,1.392536,113290.0,113280.0,0.04258]
[1754148888462,0.34,113290.0,113280.0,0.48733236]
[1754148888893,0.34,113290.0,113280.0,0.53628631]
[1754148889171,0.51010169,113300.0,113290.0,0.01744902]
[1754148889390,0.65532574,113300.0,113290.0,0.48849908]
[1754148889615,0.99532574,113300.0,113290.0,0.48629236]
[1754148889837,0.85024574,113300.0,113290.0,0.48629236]
[1754148890062,0.85024574,113300.0,113290.0,0.55462899]
[1754148890501,0.85024574,113300.0,113290.0,0.55362899]
[1754148890747,0.85024574,113300.0,113290.0,0.12632565]
[1754148891395,0.85024574,113300.0,113290.0,0.12732565]
[1754148891841,0.85189574,113300.0,113290.0,0.05604902]
[1754148892496,1.75931174,113300.0,113290.0,0.05604902]
[1754148892962,1.75931174,113300.0,113290.0,0.05898902]
[1754148893169,1.25931174,113300.0,113290.0,0.05898902]
[1754148893830,1.25931174,113300.0,113290.0,0.001]
[1754148894043,1.28584174,113300.0,113290.0,0.001]
[1754148894934,1.29204213,113300.0,113290.0,0.001]
[1754148895828,1.24796979,113300.0,113290.0,0.001]
[1754148896047,1.29001654,113300.0,113290.0,0.001]
[1754148897614,1.27347979,113300.0,113290.0,0.001]
[1754148897833,1.27348144,113300.0,113290.0,0.001]
[1754148898264,1.2417694,113300.0,113290.0,0.001]
[1754148898695,1.25164832,113300.0,113290.0,0.001]
[1754148899335,0.91894492,113300.0,113290.0,0.001]
[1754148899979,0.94445492,113300.0,113290.0,0.001]
[1754148900366,1.06330492,113300.0,113290.0,0.001]
[1754148900811,0.94445492,113300.0,113290.0,0.001]
[1754148901014,0.00987892,113300.0,113290.0,0.47282006]
[1754148901218,0.00987892,113300.0,113290.0,0.53534837]
[1754148901429,1.391816,113310.0,113300.0,0.01744902]
[1754148901638,1.391816,113310.0,113300.0,0.01952902]
[1754148902063,1.40162021,113310.0,113300.0,0.05975902]
[1754148903577,1.25722021,113310.0,113300.0,0.05975902]
[1754148903791,1.40331021,113310.0,113280.0,0.42734334]
[1754148904010,1.247416,113300.0,113290.0,0.01744902]
[1754148904213,1.249066,113300.0,113290.0,0.01744902]
[1754148904470,1.249066,113300.0,113290.0,0.05975902]
[1754148904682,1.247416,113300.0,113290.0,0.06196574]
[1754148905118,0.34,113300.0,113290.0,0.06196574]
[1754148905326,0.34,113300.0,113290.0,0.11518449]
[1754148905544,0.48436,113300.0,113290.0,0.06296574]
[1754148906614,0.48436,113300.0,113290.0,0.49026908]
[1754148906817,0.48436,113300.0,113290.0,0.06075902]
[1754148907061,0.48436,113300.0,113290.0,0.49026908]
[1754148907267,0.34,113300.0,113290.0,0.06075902]
[1754148907493,0.4842,113300.0,113290.0,0.11606381]
[1754148908681,0.4842,113300.0,113290.0,0.11706381]
[1754148910017,0.4842,113300.0,113290.0,0.06396574]
[1754148910419,0.34,113300.0,113290.0,0.06396574]
[1754148910627,0.48412,113300.0,113290.0,0.06396574]
[1754148911315,0.34,113300.0,113290.0,0.06175902]
[1754148911531,0.48404,113300.0,113290.0,0.06175902]
[1754148912231,0.48404,113300.0,113290.0,0.11090435]
[1754148912648,0.48404,113300.0,113290.0,0.11311107]
[1754148912853,0.48404,113300.0,113290.0,0.11211107]
[1754148913298,0.48404,113300.0,113290.0,0.11411107]
[1754148913525,0.48404,113300.0,113290.0,0.11311107]
[1754148913955,0.48404,113300.0,113290.0,0.11511107]
[1754148914426,0.48404,113300.0,113290.0,0.01511107]
[1754148914682,0.52276,113300.0,113290.0,0.01511107]
[1754148914918,0.52585,113300.0,113290.0,0.01511107]
[1754148915412,0.52585,113300.0,113290.0,0.004]
[1754148919006,1.433266,113300.0,113290.0,0.004]
[1754148919208,1.76127423,113300.0,113290.0,0.004]
[1754148919628,1.78404505,113300.0,113290.0,0.004]
[1754148920537,1.78404292,113300.0,113290.0,0.004]
[1754148921842,1.45603469,113300.0,113290.0,0.004]
[1754148922482,1.43947622,113300.0,113290.0,0.004]
[1754148922903,1.85168434,113300.0,113290.0,0.004]
[1754148923111,1.52367611,113300.0,113290.0,0.004]
[1754148923538,0.53206022,113300.0,113290.0,0.004]
[1754148923750,1.43947622,113300.0,113290.0,0.004]
[1754148926738,1.29543622,113300.0,113290.0,0.004]
[1754148926959,1.392706,113300.0,113290.0,0.37043823]
[1754148927174,1.392706,113300.0,113290.0,0.37350823]
[1754148927175,1.390736,113300.0,113290.0,0.37350823]
[1754148927687,1.392696,113300.0,113290.0,0.04042]
[1754148927914,1.433846,113300.0,113290.0,0.04042]
[1754148928158,1.433846,113300.0,113290.0,0.04243]
[1754148929280,1.290526,113300.0,113290.0,0.04243]
[1754148929506,1.392616,113300.0,113290.0,0.37043823]
[1754148929720,1.390656,113300.0,113290.0,0.37350823]
[1754148929934,0.4852,113300.0,113290.0,0.37350823]
[1754148930149,1.392616,113300.0,113290.0,0.0455]
[1754148931468,1.392616,113300.0,113290.0,0.04243]
[1754148933655,1.430766,113300.0,113290.0,0.04243]
[1754148934111,1.433766,113300.0,113290.0,0.04243]
[1754148934300,1.433766,113300.0,113290.0,0.04042]
[1754148934926,1.433766,113300.0,113290.0,0.04262672]
[1754148935176,1.433766,113300.0,113290.0,0.04243]
[1754148935596,1.433766,113300.0,113290.0,0.04463672]
[1754148936021,1.433766,113300.0,113290.0,0.004]
[1754148936464,1.84597412,113300.0,113290.0,0.004]
[1754148936917,1.85218009,113300.0,113290.0,0.004]
[1754148937117,1.52417186,113300.0,113290.0,0.004]
[1754148937331,1.85218009,113300.0,113290.0,0.004]
[1754148937777,1.86872902,113300.0,113290.0,0.004]
[1754148937990,1.87700312,113300.0,113290.0,0.004]
[1754148938842,1.54899489,113300.0,113290.0,0.002]
[1754148939301,1.79280323,113300.0,113290.0,0.003]
[1754148939727,1.79280323,113300.0,113290.0,0.002]
[1754148940387,0.907416,113290.0,113280.0,0.00018405]
[1754148940605,0.47941071,113290.0,113280.0,0.00018405]
[1754148940860,1.09996848,113290.0,113280.0,0.00018405]
[1754148942176,1.1841692,113290.0,113280.0,0.00118405]
[1754148942392,1.51217743,113290.0,113280.0,0.00118405]
[1754148944334,1.1841692,113290.0,113280.0,0.00118405]
[1754148944551,1.51217743,113290.0,113280.0,0.00118405]
[1754148944760,1.85217743,113290.0,113280.0,0.00118405]
[1754148945595,1.5241692,113290.0,113280.0,0.00118405]
[1754148945806,1.54070617,113290.0,113280.0,0.00118405]
[1754148946011,1.8687144,113290.0,113280.0,0.00118405]
[1754148946426,1.86871201,113290.0,113280.0,0.00118405]
[1754148947054,1.85217536,113290.0,113280.0,0.00118405]
[1754148947934,0.94475936,113290.0,113280.0,0.00118405]
[1754148948137,1.52416713,113290.0,113280.0,0.00118405]
[1754148948363,1.85217536,113290.0,113280.0,0.00118405]
[1754148951046,1.52416713,113290.0,113280.0,0.00118405]
[1754148951263,1.85217536,113290.0,113280.0,0.00118405]
[1754148952174,1.85217291,113290.0,113280.0,0.00118405]
[1754148952826,0.94475691,113290.0,113280.0,0.00118405]
[1754148953035,1.85217291,113290.0,113280.0,0.00118405]
[1754148953518,1.52416468,113290.0,113280.0,0.00118405]
[1754148953721,1.85217291,113290.0,113280.0,0.00118405]
[1754148955241,1.85217036,113290.0,113280.0,0.00118405]
[1754148955455,1.76797047,113290.0,113280.0,0.00118405]
[1754148956539,1.78449251,113290.0,113280.0,0.00118405]
[1754148958007,1.45648428,113290.0,113280.0,0.00118405]
[1754148958234,1.78449251,113290.0,113280.0,0.00118405]
[1754148959102,1.45648428,113290.0,113280.0,0.00118405]
[1754148959698,1.8686924,113290.0,113280.0,0.00118405]
[1754148961091,1.54068417,113290.0,113280.0,0.00118405]
[1754148961335,1.78449251,113290.0,113280.0,0.00118405]
[1754148962907,1.45648428,113290.0,113280.0,0.00118405]
[1754148963118,1.78449251,113290.0,113280.0,0.00118405]
[1754148964297,1.79276015,113290.0,113280.0,0.00118405]
[1754148965361,1.46475192,113290.0,113280.0,0.00118405]
[1754148965564,1.79276015,113290.0,113280.0,0.00118405]
[1754148965786,1.54895181,113290.0,113280.0,0.00118405]
[1754148965993,0.96954404,113290.0,113280.0,0.00118405]
[1754148966210,1.87696004,113290.0,113280.0,0.00118405]
[1754148967072,1.87699702,113290.0,113280.0,0.00118405]
[1754148967698,1.54898879,113290.0,113280.0,0.00118405]
[1754148968080,1.87699702,113290.0,113280.0,0.00118405]
[1754148968893,1.4204389,113290.0,113280.0,0.04323405]
[1754148969889,1.41216613,113290.0,113280.0,0.04323405]
[1754148970723,1.42044167,113290.0,113280.0,0.04323405]
[1754148971226,1.27844167,113290.0,113280.0,0.04323405]
[1754148971434,1.42040167,113290.0,113280.0,0.04323405]
[1754148971637,1.27844167,113290.0,113280.0,0.04323405]
[1754148971845,1.42028983,113290.0,113280.0,0.04323405]
[1754148972054,1.50448972,113290.0,113280.0,0.04323405]
[1754148972502,1.41197414,113290.0,113280.0,0.04323405]
[1754148973344,0.93017414,113290.0,113280.0,0.04323405]
[1754148973936,1.07189414,113290.0,113280.0,0.04323405]
[1754148974513,1.08016973,113290.0,113280.0,0.04323405]
[1754148975451,0.93844973,113290.0,113280.0,0.04323405]
[1754148975667,1.07189414,113290.0,113280.0,0.04323405]
[1754148976955,1.07185414,113290.0,113280.0,0.40836651]
[1754148977172,1.41185414,113290.0,113280.0,0.40836651]
[1754148977393,1.39518276,113290.0,113280.0,0.40836651]
[1754148977621,0.48776676,113290.0,113280.0,0.37124228]
[1754148977833,0.48156,113290.0,113280.0,0.37124228]
[1754148978043,0.907416,113300.0,113280.0,0.37124228]
[1754148978264,0.02275143,113300.0,113290.0,0.36790823]
[1754148978480,0.16431143,113300.0,113290.0,0.04205]
[1754148978710,0.48776482,113300.0,113290.0,0.37005823]
[1754148978955,0.34620482,113300.0,113290.0,0.40740315]
[1754148979177,0.14772482,113300.0,113290.0,0.42485217]
[1754148979398,0.14252,113300.0,113290.0,0.42485217]
[1754148979838,0.14152,113300.0,113290.0,0.42485217]
[1754148980090,0.48152,113300.0,113290.0,0.42485217]
[1754148980308,0.48152,113300.0,113290.0,0.42785217]
[1754148980536,0.48252,113300.0,113290.0,0.42785217]
[1754148981212,0.48152,113300.0,113290.0,0.42785217]
[1754148981669,0.48152,113300.0,113290.0,0.43085217]
[1754148982321,0.34,113300.0,113290.0,0.43085217]
[1754148983067,0.01737763,113310.0,113300.0,0.01744902]
[1754148983281,0.49869763,113310.0,113300.0,0.40306389]
[1754148983508,0.48132,113310.0,113300.0,0.11274913]
[1754148983742,0.48132,113310.0,113300.0,0.38971378]
[1754148983980,0.48132,113310.0,113300.0,0.38750725]
[1754148984204,0.48132,113310.0,113300.0,0.38850725]
[1754148984424,0.48132,113310.0,113300.0,0.38950725]
[1754148984879,0.48132,113310.0,113300.0,0.06149902]
[1754148985102,0.34,113310.0,113300.0,0.08200993]
[1754148985337,0.48132,113310.0,113300.0,0.08200993]
[1754148985818,0.48132,113310.0,113300.0,0.41001816]
[1754148986060,0.48132,113310.0,113300.0,0.0798034]
[1754148986792,0.49927153,113310.0,113300.0,0.08200993]
[1754148987035,0.49927153,113310.0,113300.0,0.41001816]
[1754148987273,0.49927153,113310.0,113300.0,0.0798034]
[1754148987503,0.49927153,113310.0,113300.0,0.08200993]
[1754148987785,0.49927153,113310.0,113300.0,0.41001816]
[1754148988019,0.49927153,113310.0,113300.0,0.40781163]
[1754148988234,0.49927153,113310.0,113300.0,0.0798034]
[1754148988455,0.49927153,113310.0,113300.0,0.08200993]
[1754148988657,0.49927153,113310.0,113300.0,0.41001816]
[1754148988878,0.49927153,113310.0,113300.0,0.40781163]
[1754148989114,0.49915153,113310.0,113300.0,0.40781163]
[1754148991727,0.49915153,113310.0,113300.0,0.0798034]
[1754148991943,0.53954153,113310.0,113300.0,0.0377534]
[1754148992593,0.53954153,113310.0,113300.0,0.0763334]
[1754148993683,0.53954153,113310.0,113300.0,0.08062993]
[1754148993884,0.49915153,113310.0,113300.0,0.41158816]
[1754148994133,0.49915153,113310.0,113300.0,0.40938163]
[1754148994558,0.49915153,113310.0,113300.0,0.0813734]
[1754148994761,0.49915153,113310.0,113300.0,0.41158816]
[1754148994970,0.49915153,113310.0,113300.0,0.40938163]
[1754148995638,0.35795153,113310.0,113300.0,0.40938163]
[1754148995839,0.49903153,113310.0,113300.0,0.40938163]
[1754148997599,0.35795153,113310.0,113300.0,0.40938163]
[1754148997810,0.49903153,113310.0,113300.0,0.40938163]
[1754148998046,0.49903153,113310.0,113300.0,0.0813734]
[1754148998266,0.53626153,113310.0,113300.0,0.06011902]
[1754148998483,0.50118153,113310.0,113300.0,0.06232555]
[1754148999130,0.50118153,113310.0,113300.0,0.39033378]
[1754148999347,0.50118153,113310.0,113300.0,0.38812725]
[1754148999548,0.50118153,113310.0,113300.0,0.44204376]
[1754148999770,0.53942153,113310.0,113300.0,0.44204376]
[1754149000219,0.53942153,113310.0,113300.0,0.06011902]
[1754149000458,0.50118153,113310.0,113300.0,0.06011902]
[1754149000682,0.50118153,113310.0,113300.0,0.06306902]
[1754149001342,0.50118153,113310.0,113300.0,0.39328378]
[1754149001571,0.50118153,113310.0,113300.0,0.39107725]
[1754149001775,0.50118153,113310.0,113300.0,0.11698553]
[1754149002025,0.50118153,113310.0,113300.0,0.39328378]
[1754149002246,0.50118153,113310.0,113300.0,0.06011902]
[1754149002460,0.53942153,113310.0,113300.0,0.38812725]
[1754149002835,0.53942153,113310.0,113300.0,0.002]
[1754149008694,0.53942153,113310.0,113300.0,0.00420653]
[1754149008909,0.53942153,113310.0,113300.0,0.04278653]
[1754149009344,1.44683753,113310.0,113300.0,0.002]
[1754149009599,1.77484576,113310.0,113300.0,0.002]
[1754149009824,1.85904565,113310.0,113300.0,0.002]
[1754149010260,1.78105067,113310.0,113300.0,0.002]
[1754149010728,1.78105067,113310.0,113300.0,0.001]
[1754149010942,1.79759777,113310.0,113300.0,0.001]
[1754149011591,0.34,113300.0,113280.0,0.17944405]
[1754149011797,0.14283,113290.0,113280.0,0.05830307]
[1754149012009,0.14283,113290.0,113280.0,0.1156969]
[1754149012409,0.14283,113290.0,113280.0,0.1186469]
[1754149012881,0.52107,113290.0,113280.0,0.01763307]
[1754149013094,0.52107,113290.0,113280.0,0.00118405]
[1754149013314,0.52107,113290.0,113280.0,0.00418405]
[1754149013750,0.52107,113290.0,113280.0,0.00318405]
[1754149014184,0.52107,113290.0,113280.0,0.00518405]
[1754149015286,0.52107,113290.0,113280.0,0.04123405]
[1754149015731,0.52107,113290.0,113280.0,0.04324405]
[1754149016648,0.52107,113290.0,113280.0,0.04123405]
[1754149017079,0.52107,113290.0,113280.0,0.00518405]
[1754149017516,0.01795153,113310.0,113280.0,0.00518405]
[1754149017710,0.00209,113290.0,113280.0,0.04123405]
[1754149017947,0.50209,113290.0,113280.0,0.04123405]
[1754149018838,0.64245,113290.0,113280.0,0.04324405]
[1754149019271,0.64245,113290.0,113280.0,0.04618405]
[1754149019719,0.64245,113290.0,113280.0,0.04418405]
[1754149021066,0.64245,113290.0,113280.0,0.04618405]
[1754149021949,0.64245,113290.0,113280.0,0.37419228]
[1754149022210,0.5,113290.0,113280.0,0.37419228]
[1754149022449,0.907416,113300.0,113280.0,0.06363307]
[1754149022694,0.48036,113300.0,113290.0,0.03605]
[1754149022935,0.48245,113300.0,113290.0,0.03605]
[1754149023179,0.48245,113300.0,113290.0,0.08009082]
[1754149023631,0.48245,113300.0,113290.0,0.041]
[1754149023855,0.48245,113300.0,113290.0,0.042]
[1754149024534,0.48261,113300.0,113290.0,0.042]
[1754149024751,0.48261,113300.0,113290.0,0.37000823]
[1754149025195,0.48261,113300.0,113290.0,0.042]
[1754149026342,0.48261,113300.0,113290.0,0.08076413]
[1754149026558,0.48261,113300.0,113290.0,0.08176413]
[1754149028733,1.60719423,113300.0,113290.0,0.002]
[1754149028952,1.247416,113290.0,113280.0,0.14054405]
[1754149029172,1.57751423,113290.0,113280.0,0.14054405]
[1754149029390,1.60719423,113290.0,113280.0,0.14054405]
[1754149029859,1.69139412,113290.0,113280.0,0.14054405]
[1754149030083,0.907416,113280.0,113270.0,0.026549]
[1754149030302,1.23751423,113280.0,113270.0,0.166869]
[1754149030518,0.939186,113280.0,113270.0,0.026549]
[1754149030728,0.939186,113280.0,113270.0,0.166829]
[1754149031181,0.939186,113280.0,113270.0,0.14028]
[1754149031809,0.909506,113280.0,113270.0,0.17834]
[1754149032041,0.93380422,113280.0,113270.0,0.50928823]
[1754149032287,0.36638822,113280.0,113270.0,0.52673725]
[1754149033168,0.36638822,113280.0,113270.0,0.52873725]
[1754149033613,0.36638822,113280.0,113270.0,0.20072902]
[1754149033838,0.36638822,113280.0,113270.0,0.55146505]
[1754149034269,0.36638822,113280.0,113270.0,0.22345682]
[1754149034667,0.36638822,113280.0,113270.0,0.55146505]
[1754149035060,0.36638822,113280.0,113270.0,0.08317682]
[1754149035272,0.36638822,113280.0,113270.0,0.52869725]
[1754149038038,0.36638822,113280.0,113270.0,0.38845725]
[1754149038244,0.36638822,113280.0,113270.0,0.52897725]
[1754149038867,0.36638822,113280.0,113270.0,0.38845725]
[1754149038873,0.36638822,113280.0,113270.0,0.52893725]
[1754149039070,0.36638822,113280.0,113270.0,0.58448588]
[1754149040789,0.36638822,113280.0,113270.0,0.58440588]
[1754149041623,0.36638822,113280.0,113270.0,0.44400588]
[1754149041925,0.36638822,113280.0,113270.0,0.58432588]
[1754149042857,0.36638822,113280.0,113270.0,0.58428588]
[1754149043066,0.36638822,113280.0,113270.0,0.44400588]
[1754149043280,0.36638822,113280.0,113270.0,0.58428588]
[1754149047824,0.36638822,113280.0,113270.0,0.44400588]
[1754149048042,0.36638822,113280.0,113270.0,0.58404588]
[1754149048475,0.36638822,113280.0,113270.0,0.44400588]
[1754149048959,0.36638822,113280.0,113270.0,0.58400588]
[1754149049606,0.36638822,113280.0,113270.0,0.58396588]
[1754149050298,0.02638822,113280.0,113270.0,0.996174]
[1754149050516,0.0001271,113290.0,113270.0,0.996174]
[1754149050737,0.0001271,113290.0,113280.0,0.65822338]
[1754149050957,0.0001271,113290.0,113280.0,0.78099635]
[1754149051181,0.0001271,113290.0,113280.0,0.80966235]
[1754149052053,0.0001271,113290.0,113280.0,0.12709989]
[1754149052254,0.0001271,113290.0,113280.0,0.84104338]
[1754149052465,0.0001271,113290.0,113280.0,0.83883646]
[1754149052702,0.0001271,113290.0,113280.0,0.51082823]
[1754149053344,0.0001271,113290.0,113280.0,0.37090823]
[1754149053562,0.0021371,113290.0,113280.0,0.0429]
[1754149053780,0.3453271,113290.0,113280.0,0.19508902]
[1754149054025,0.3453271,113290.0,113280.0,0.21435387]
[1754149054253,0.3421371,113290.0,113280.0,0.21435387]
[1754149055405,0.3421371,113290.0,113280.0,0.5423621]
[1754149055647,0.3421371,113290.0,113280.0,0.5475421]
[1754149056082,0.3421371,113290.0,113280.0,0.22053387]
[1754149056290,0.3421371,113290.0,113280.0,0.54606149]
[1754149056754,0.0021371,113290.0,113280.0,0.54606149]
[1754149058298,0.0021371,113290.0,113280.0,0.54602149]
[1754149058947,0.0021371,113290.0,113280.0,0.21801326]
[1754149059185,0.0021371,113290.0,113280.0,0.54602149]
[1754149059387,0.0001271,113290.0,113280.0,0.54602149]
[1754149060458,0.0001271,113290.0,113280.0,0.40614149]
[1754149061098,0.0001271,113290.0,113280.0,0.54602149]
[1754149061800,0.0001271,113290.0,113280.0,0.40614149]
[1754149062015,0.0001271,113290.0,113280.0,0.54594149]
[1754149062511,0.0001271,113290.0,113280.0,0.40614149]
[1754149062937,0.0001271,113290.0,113280.0,0.54590149]
[1754149063903,0.0001271,113290.0,113280.0,0.40614149]
[1754149064112,0.0001271,113290.0,113280.0,0.54590149]
[1754149064346,0.34,113290.0,113280.0,0.54590149]
[1754149064980,0.34,113290.0,113280.0,0.54586149]
[1754149065391,0.40481328,113310.0,113280.0,0.54586149]
[1754149065628,0.34,113290.0,113280.0,0.5106221]
[1754149066254,0.34,113290.0,113280.0,0.5483421]
[1754149066458,0.34,113290.0,113280.0,0.5473421]
[1754149066670,0.907416,113300.0,113280.0,0.5473421]
[1754149066887,8.474e-05,113300.0,113290.0,0.32800823]
[1754149067096,0.00528474,113300.0,113290.0,0.32800823]
[1754149067303,0.03471474,113300.0,113280.0,0.5442221]
[1754149068807,0.03471474,113300.0,113280.0,0.5462221]
[1754149069219,0.03471474,113300.0,113290.0,0.03772]
[1754149069488,0.03471474,113300.0,113290.0,0.1398]
[1754149070435,0.03471474,113300.0,113280.0,0.05716902]
[1754149070651,0.00319,113290.0,113280.0,0.001]
[1754149070856,0.3452,113290.0,113280.0,0.14192692]
[1754149071067,0.3452,113290.0,113280.0,0.50544823]
[1754149071264,0.34201,113290.0,113280.0,0.50544823]
[1754149072086,0.34201,113290.0,113280.0,0.50644823]
[1754149072293,0.34201,113290.0,113280.0,0.50744823]
[1754149072716,0.34201,113290.0,113280.0,0.03972]
[1754149072927,0.37463,113290.0,113280.0,0.46972823]
[1754149073149,0.37463,113290.0,113280.0,0.14172]
[1754149073358,0.37463,113290.0,113280.0,0.18144]
[1754149073773,0.3452,113290.0,113280.0,0.18144]
[1754149074427,0.97951747,113290.0,113280.0,0.004]
[1754149074652,1.6475257,113290.0,113280.0,0.004]
[1754149074855,0.34,113270.0,113250.0,0.37172823]
[1754149075064,0.907416,113260.0,113250.0,0.37120505]
[1754149075269,0.907416,113260.0,113250.0,0.54955505]
[1754149075481,0.907416,113260.0,113250.0,0.51235823]
[1754149075705,0.909526,113260.0,113250.0,0.04467]
[1754149075921,0.34211,113260.0,113250.0,0.50724823]